[Event "55th Biel Festival GMT Blitz 2022"]
[Site "Biel"]
[Date "2022.07.17"]
[Round "1.1"]
[White "Le, Quang Liem"]
[Black "Naiditsch, Arkadij"]
[Result "1-0"]
[ECO "E90"]
[WhiteElo "2722"]
[BlackElo "2664"]
[Annotator "ChessBase"]
[PlyCount "115"]
[EventDate "2022.07.11"]
[EventType "tourn"]
[EventCountry "SUI"]
[SourceTitle "playchess.com"]
[Source "ChessBase"]
[SourceQuality "1"]
[TimeControl "180+2"]

1. c4 {[%emt 0:00:01]} Nf6 {[%emt 0:00:02]} 2. Nc3 {[%emt 0:00:02]} g6 {[%emt 0:00:01]} 3. e4 {[%emt 0:00:02]} d6 {[%emt 0:00:02]} 4. d4 {[%emt 0:00:01]} Bg7 {[%emt 0:00:01]} 5. Nf3 {[%emt 0:00:01]} O-O {[%emt 0:00:02]} 6. h3 {[%emt 0:00:02]} Na6 {[%emt 0:00:07]} 7. Be3 {[%emt 0:00:01]} c6 {[%emt 0:00:07]} 8. Rc1 {[%emt 0:00:04]} Nc7 {[%emt 0:00:02]} 9. Be2 {[%emt 0:00:07]} b5 {[%emt 0:00:03]} 10. cxb5 {[%emt 0:00:40]} Nxb5 {[%emt 0:00:01]} 11. Nd2 {[%emt 0:00:11]} Nxc3 {[%emt 0:00:08]} 12. bxc3 {[%emt 0:00:03]} Rb8 {[%emt 0:00:09]} 13. O-O {[%emt 0:00:03]} Qa5 {[%emt 0:00:01]} 14. Qc2 {[%emt 0:00:07]} Ba6 {[%emt 0:00:12]} 15. c4 {[%emt 0:00:11]} Nd7 {[%emt 0:00:10]} 16. Rb1 {[%emt 0:00:05]} c5 {[%emt 0:00:03]} 17. d5 {[%emt 0:00:04]} Rxb1 {[%emt 0:00:17]} 18. Rxb1 {[%emt 0:00:01]} Rb8 {[%emt 0:00:02]} 19. Rxb8+ {[%emt 0:00:08]} Nxb8 {[%emt 0:00:02]} 20. Nb3 {[%emt 0:00:07]} Qc3 {[%emt 0:00:15]} 21. Qb1 {[%emt 0:00:09]} Nd7 {[%emt 0:00:30]} 22. Bd2 {[%emt 0:00:01]} Qb2 {[%emt 0:00:01]} 23. Qxb2 {[%emt 0:00:02]} Bxb2 {[%emt 0:00:02]} 24. Na5 {[%emt 0:00:02]} Nb6 {[%emt 0:00:04]} 25. Kf1 {[%emt 0:00:04]} Kf8 {[%emt 0:00:01]} 26. Ke1 {[%emt 0:00:01]} h5 {[%emt 0:00:16]} 27. Kd1 {[%emt 0:00:02]} Bc8 {[%emt 0:00:13]} 28. Nc6 {[%emt 0:00:06]} a6 {[%emt 0:00:07]} 29. Kc2 {[%emt 0:00:07]} Bf6 {[%emt 0:00:02]} 30. f4 {[%emt 0:00:13]} h4 {[%emt 0:00:11]} 31. e5 {[%emt 0:00:18]} Bf5+ {[%emt 0:00:02]} 32. Bd3 {[%emt 0:00:06]} Bg7 {[%emt 0:00:06]} 33. Bxf5 {[%emt 0:00:02]} gxf5 {[%emt 0:00:01]} 34. Kb3 {[%emt 0:00:07]} Bh6 {[%emt 0:00:10]} 35. Ba5 {[%emt 0:00:04]} Nc8 {[%emt 0:00:08]} 36. exd6 {[%emt 0:00:08]} exd6 {[%emt 0:00:06]} 37. Bd8 {[%emt 0:00:02]} Bxf4 {[%emt 0:00:06]} 38. Ka4 {[%emt 0:00:01]} Bd2 {[%emt 0:00:03]} 39. Bxh4 {[%emt 0:00:01]} Nb6+ {[%emt 0:00:02]} 40. Kb3 {[%emt 0:00:01]} Ke8 {[%emt 0:00:01]} 41. Bf6 {[%emt 0:00:02]} Be1 {[%emt 0:00:04]} 42. h4 {[%emt 0:00:04]} Nd7 {[%emt 0:00:03]} 43. Be7 {[%emt 0:00:04]} Bg3 {[%emt 0:00:05]} 44. h5 {[%emt 0:00:04]} f6 {[%emt 0:00:00]} 45. h6 {[%emt 0:00:02]} Kf7 {[%emt 0:00:01]} 46. Bd8 {[%emt 0:00:03]} Bf4 {[%emt 0:00:07]} 47. Ka4 {[%emt 0:00:02]} Bxh6 {[%emt 0:00:03]} 48. Ka5 {[%emt 0:00:01]} Ne5 {[%emt 0:00:01]} 49. Nxe5+ {[%emt 0:00:16]} fxe5 {[%emt 0:00:02]} 50. Kxa6 {[%emt 0:00:00]} Bd2 {[%emt 0:00:04]} 51. Bc7 {[%emt 0:00:07]} Ke7 {[%emt 0:00:01]} 52. Kb6 {[%emt 0:00:01]} e4 {[%emt 0:00:05]} 53. Kc6 {[%emt 0:00:01]} Bf4 {[%emt 0:00:01]} 54. Ba5 {[%emt 0:00:05]} Bg3 {[%emt 0:00:02]} 55. Bd2 {[%emt 0:00:07]} f4 {[%emt 0:00:02]} 56. a4 e3 {[%emt 0:00:00]} 57. Bc3 {[%emt 0:00:01]} e2 {[%emt 0:00:08]} 58. a5 {[%emt 0:00:01]} 1-0

[Event "55th Biel Festival GMT Blitz 2022"]
[Site "Biel"]
[Date "2022.07.17"]
[Round "10.2"]
[White "Le, Quang Liem"]
[Black "Keymer, Vincent"]
[Result "0-1"]
[ECO "E21"]
[WhiteElo "2722"]
[BlackElo "2686"]
[Annotator "ChessBase"]
[PlyCount "113"]
[EventDate "2022.07.11"]
[EventType "tourn"]
[EventCountry "SUI"]
[SourceTitle "playchess.com"]
[Source "ChessBase"]
[SourceQuality "1"]
[TimeControl "180+2"]

1. d4 {[%emt 0:00:01]} Nf6 {[%emt 0:00:00]} 2. c4 {[%emt 0:00:01]} e6 {[%emt 0:00:01]} 3. Nc3 {[%emt 0:00:01]} Bb4 {[%emt 0:00:01]} 4. Nf3 {[%emt 0:00:01]} d6 {[%emt 0:00:01]} 5. Bd2 {[%emt 0:00:04]} O-O {[%emt 0:00:05]} 6. a3 {[%emt 0:00:01]} Bxc3 {[%emt 0:00:04]} 7. Bxc3 {[%emt 0:00:01]} Ne4 {[%emt 0:00:01]} 8. Qc2 {[%emt 0:00:04]} Nxc3 {[%emt 0:00:04]} 9. Qxc3 {[%emt 0:00:01]} b6 {[%emt 0:00:04]} 10. g3 {[%emt 0:00:07]} Bb7 {[%emt 0:00:02]} 11. Bg2 {[%emt 0:00:01]} Nd7 {[%emt 0:00:01]} 12. O-O {[%emt 0:00:02]} Nf6 {[%emt 0:00:06]} 13. Rfe1 {[%emt 0:00:08]} Qe7 {[%emt 0:00:06]} 14. Rad1 {[%emt 0:00:03]} h6 {[%emt 0:00:04]} 15. Nh4 {[%emt 0:00:40]} Bxg2 {[%emt 0:00:08]} 16. Nxg2 {[%emt 0:00:01]} c5 {[%emt 0:00:11]} 17. e4 {[%emt 0:00:15]} cxd4 {[%emt 0:00:02]} 18. Qxd4 {[%emt 0:00:01]} Rfd8 {[%emt 0:00:01]} 19. Rd2 {[%emt 0:00:23]} Rac8 {[%emt 0:00:07]} 20. a4 {[%emt 0:00:10]} Qb7 {[%emt 0:00:19]} 21. b3 {[%emt 0:00:06]} a6 {[%emt 0:00:07]} 22. Qd3 {[%emt 0:00:15]} Rd7 {[%emt 0:00:18]} 23. f3 {[%emt 0:00:08]} b5 {[%emt 0:00:06]} 24. cxb5 {[%emt 0:00:09]} axb5 {[%emt 0:00:01]} 25. Qxb5 {[%emt 0:00:01]} Qxb5 {[%emt 0:00:09]} 26. axb5 {[%emt 0:00:01]} Rb8 {[%emt 0:00:25]} 27. Red1 {[%emt 0:00:04]} Ne8 {[%emt 0:00:32]} 28. Nf4 {[%emt 0:00:21]} Rxb5 {[%emt 0:00:06]} 29. Nd3 {[%emt 0:00:01]} Rc7 {[%emt 0:00:13]} 30. b4 {[%emt 0:00:04]} Nf6 {[%emt 0:00:11]} 31. Kf2 {[%emt 0:00:05]} g5 {[%emt 0:00:05]} 32. h3 {[%emt 0:00:11]} d5 {[%emt 0:00:02]} 33. e5 {[%emt 0:00:03]} Nd7 {[%emt 0:00:01]} 34. Ra1 {[%emt 0:00:06]} Rc3 {[%emt 0:00:04]} 35. Ke2 {[%emt 0:00:14]} Nb8 {[%emt 0:00:08]} 36. Rb2 {[%emt 0:00:12]} Nc6 {[%emt 0:00:02]} 37. Kd2 {[%emt 0:00:02]} Rc4 {[%emt 0:00:01]} 38. Rc1 {[%emt 0:00:04]} Kg7 {[%emt 0:00:07]} 39. f4 {[%emt 0:00:02]} Kg6 {[%emt 0:00:01]} 40. Rf1 {[%emt 0:00:03]} Kg7 {[%emt 0:00:11]} 41. Rc1 {[%emt 0:00:02]} Kg6 {[%emt 0:00:00]} 42. Rf1 {[%emt 0:00:00]} Nd4 {[%emt 0:00:01]} 43. Rc1 {[%emt 0:00:02]} Nf5 {[%emt 0:00:04]} 44. g4 {[%emt 0:00:02]} Nd4 {[%emt 0:00:01]} 45. fxg5 {[%emt 0:00:01]} hxg5 {[%emt 0:00:01]} 46. Rxc4 {[%emt 0:00:01]} dxc4 {[%emt 0:00:00]} 47. Nc5 {[%emt 0:00:01]} Nf3+ {[%emt 0:00:01]} 48. Kc3 {[%emt 0:00:01]} Nxe5 {[%emt 0:00:02]} 49. Re2 {[%emt 0:00:02]} Nc6 {[%emt 0:00:05]} 50. Nxe6 {[%emt 0:00:03]} Rxb4 {[%emt 0:00:04]} 51. Nd8 {[%emt 0:00:03]} Rb3+ {[%emt 0:00:01]} 52. Kxc4 {[%emt 0:00:02]} Na5+ 53. Kc5 {[%emt 0:00:02]} Rxh3 {[%emt 0:00:02]} 54. Rb2 {[%emt 0:00:04]} Rd3 {[%emt 0:00:05]} 55. Rb8 {[%emt 0:00:04]} Rxd8 {[%emt 0:00:01]} 56. Rb5 {[%emt 0:00:03]} Ra8 {[%emt 0:00:02]} 57. Kd4 {[%emt 0:00:05]} 0-1

[Event "55th Biel Festival GMT Blitz 2022"]
[Site "Biel"]
[Date "2022.07.17"]
[Round "12.4"]
[White "Kamsky, Gata"]
[Black "Gukesh D"]
[Result "1-0"]
[ECO "D02"]
[WhiteElo "2655"]
[BlackElo "2684"]
[Annotator "ChessBase"]
[PlyCount "127"]
[EventDate "2022.07.11"]
[EventType "tourn"]
[EventCountry "SUI"]
[SourceTitle "playchess.com"]
[Source "ChessBase"]
[SourceQuality "1"]
[TimeControl "180+2"]

1. d4 {[%emt 0:00:01]} Nf6 {[%emt 0:00:03]} 2. Bf4 {[%emt 0:00:02]} d5 {[%emt 0:00:02]} 3. e3 {[%emt 0:00:01]} Bg4 {[%emt 0:00:02]} 4. Nf3 {[%emt 0:00:08]} e6 {[%emt 0:00:01]} 5. Nbd2 {[%emt 0:00:12]} Bd6 {[%emt 0:00:02]} 6. Bxd6 {[%emt 0:00:07]} Qxd6 {[%emt 0:00:02]} 7. c4 {[%emt 0:00:02]} O-O {[%emt 0:00:05]} 8. Be2 {[%emt 0:00:05]} c5 {[%emt 0:00:05]} 9. dxc5 {[%emt 0:00:02]} Qxc5 {[%emt 0:00:03]} 10. Rc1 {[%emt 0:00:02]} dxc4 {[%emt 0:00:04]} 11. Nxc4 {[%emt 0:00:08]} Nc6 {[%emt 0:00:06]} 12. O-O {[%emt 0:00:06]} Rfd8 {[%emt 0:00:02]} 13. Qb3 {[%emt 0:00:01]} Qe7 {[%emt 0:00:26]} 14. h3 {[%emt 0:00:02]} Bh5 {[%emt 0:00:02]} 15. Rfd1 {[%emt 0:00:05]} Nd5 {[%emt 0:00:02]} 16. g4 {[%emt 0:00:27]} Bg6 {[%emt 0:00:01]} 17. Nce5 {[%emt 0:00:02]} Nxe5 {[%emt 0:00:03]} 18. Nxe5 {[%emt 0:00:01]} Rac8 {[%emt 0:00:28]} 19. Nxg6 {[%emt 0:00:08]} hxg6 {[%emt 0:00:02]} 20. Bf3 {[%emt 0:00:03]} Nb6 {[%emt 0:00:22]} 21. Kg2 {[%emt 0:00:06]} g5 {[%emt 0:00:23]} 22. Qb5 {[%emt 0:00:08]} Rxc1 {[%emt 0:00:15]} 23. Rxc1 {[%emt 0:00:01]} Rd2 {[%emt 0:00:02]} 24. Qa5 {[%emt 0:00:36]} Rxb2 {[%emt 0:00:07]} 25. Qxa7 {[%emt 0:00:02]} Qf6 {[%emt 0:00:01]} 26. Qxb7 {[%emt 0:00:21]} Nd5 {[%emt 0:00:02]} 27. Qc8+ {[%emt 0:00:02]} Kh7 {[%emt 0:00:02]} 28. Rc2 {[%emt 0:00:02]} Ne7 {[%emt 0:00:34]} 29. Qc4 {[%emt 0:00:05]} Rb8 {[%emt 0:00:10]} 30. Be4+ {[%emt 0:00:03]} Ng6 {[%emt 0:00:07]} 31. a4 {[%emt 0:00:04]} Kh6 {[%emt 0:00:02]} 32. Bxg6 {[%emt 0:00:02]} Qxg6 {[%emt 0:00:00]} 33. a5 {[%emt 0:00:03]} Qf6 {[%emt 0:00:11]} 34. a6 {[%emt 0:00:03]} Qa1 {[%emt 0:00:02]} 35. Ra2 {[%emt 0:00:01]} Qd1 {[%emt 0:00:03]} 36. Qd4 {[%emt 0:00:17]} Qc1 {[%emt 0:00:04]} 37. Ra1 {[%emt 0:00:03]} Qc6+ {[%emt 0:00:01]} 38. Kg1 {[%emt 0:00:03]} Ra8 {[%emt 0:00:05]} 39. a7 {[%emt 0:00:01]} f6 {[%emt 0:00:01]} 40. e4 {[%emt 0:00:05]} Qb7 {[%emt 0:00:03]} 41. e5 {[%emt 0:00:04]} fxe5 {[%emt 0:00:01]} 42. Qxe5 {[%emt 0:00:05]} Rxa7 {[%emt 0:00:01]} 43. Qxe6+ {[%emt 0:00:02]} Kh7 {[%emt 0:00:03]} 44. Qf5+ {[%emt 0:00:01]} Kh6 {[%emt 0:00:02]} 45. Rb1 {[%emt 0:00:03]} Qc6 {[%emt 0:00:02]} 46. Re1 {[%emt 0:00:04]} Ra6 {[%emt 0:00:03]} 47. h4 {[%emt 0:00:01]} Qf6 {[%emt 0:00:02]} 48. hxg5+ {[%emt 0:00:03]} Qxg5 {[%emt 0:00:00]} 49. Re6+ {[%emt 0:00:03]} Rxe6 {[%emt 0:00:01]} 50. Qxe6+ {[%emt 0:00:01]} Kh7 {[%emt 0:00:01]} 51. Kg2 {[%emt 0:00:01]} Qc1 {[%emt 0:00:02]} 52. Qf5+ {[%emt 0:00:03]} Kh8 {[%emt 0:00:00]} 53. g5 {[%emt 0:00:01]} Qc6+ {[%emt 0:00:02]} 54. f3 {[%emt 0:00:01]} Qd6 {[%emt 0:00:05]} 55. g6 {[%emt 0:00:02]} Qd2+ {[%emt 0:00:01]} 56. Kh3 {[%emt 0:00:00]} Qd8 {[%emt 0:00:07]} 57. Qh5+ {[%emt 0:00:02]} Kg8 {[%emt 0:00:01]} 58. Qh7+ {[%emt 0:00:00]} Kf8 {[%emt 0:00:01]} 59. Qh8+ {[%emt 0:00:01]} Ke7 {[%emt 0:00:00]} 60. Qxg7+ {[%emt 0:00:01]} Ke6 {[%emt 0:00:02]} 61. Qf7+ {[%emt 0:00:01]} Ke5 {[%emt 0:00:01]} 62. g7 {[%emt 0:00:01]} Qc8+ {[%emt 0:00:04]} 63. Kh4 {[%emt 0:00:02]} Qd8+ {[%emt 0:00:02]} 64. Kh5 {[%emt 0:00:01]} 1-0